bitfinex-derivatives/quotes_SOLF0:USTF0_20260213
["timestamp","ask_amount","ask_price","bid_price","bid_amount"]
[1770981900963,11.2631,79.967,79.943,4.16690407]
[1770981901161,3.93040069,79.979,79.943,4.16690407]
[1770981902268,3.93040069,79.979,79.932,4.16690407]
[1770981902463,4.13561869,79.969,79.932,4.16690407]
[1770981902662,4.13561869,79.969,79.921,4.16690407]
[1770981902863,3.20131141,79.96,79.911,4.16690407]
[1770981903069,3.20131141,79.96,79.898,126.42]
[1770981903070,4.11810187,79.979,79.931,4.16690407]
[1770981903769,4.11810187,79.979,79.933,4.16690407]
[1770981903770,11.2621,79.974,79.933,4.16690407]
[1770981906171,11.2629,79.969,79.933,4.16690407]
[1770981906558,4.11810187,79.979,79.938,4.16690407]
[1770981906770,15.37960187,79.979,79.938,4.16690407]
[1770981907072,15.37960187,79.979,79.941,4.16690407]
[1770981907772,11.2601,79.989,79.95,3.20488468]
[1770981907968,4.13561869,80.004,79.961,4.16690407]
[1770981908771,11.2585,80.0,79.961,4.16690407]
[1770981909175,4.13561869,80.004,79.97,7.37178875]
[1770981909375,4.13561869,80.004,79.97,4.16690407]
[1770981909573,4.13561869,80.002,79.96,3.20488468]
[1770981909874,4.13561869,80.002,79.961,4.16690407]
[1770981910366,11.2583,80.001,79.961,4.16690407]
[1770981910573,4.13561869,80.002,79.961,4.16690407]
[1770981910969,4.13561869,80.019,79.971,4.16690407]
[1770981911170,4.13561869,80.008,79.971,4.16690407]
[1770981914168,11.2567,80.012,79.971,4.16690407]
[1770981916974,4.13561869,80.019,79.981,4.16690407]
[1770981918976,11.2562,80.016,79.981,4.16690407]
[1770981919669,11.257,80.01,79.981,4.16690407]
[1770981920172,4.13561869,80.019,79.981,4.16690407]
[1770981920768,4.13561869,80.032,79.991,4.16690407]
[1770981921475,4.13561869,80.022,79.98,7.37178875]
[1770981922468,4.13561869,80.022,79.981,4.16690407]
[1770981922876,4.13561869,80.022,79.984,4.16690407]
[1770981923275,4.13561869,80.022,79.986,11.2603]
[1770981924174,11.2552,80.023,79.987,4.16690407]
[1770981924471,11.2543,80.03,79.987,4.16690407]
[1770981924870,11.2543,80.03,79.986,11.2603]
[1770981924871,11.2543,80.03,79.99,4.16690407]
[1770981925070,11.253,80.039,79.991,4.16690407]
[1770981925272,11.253,80.039,80.001,4.16690407]
[1770981925667,4.13561869,80.044,80.004,4.16690407]
[1770981926676,11.2512,80.051,80.014,4.16690407]
[1770981927078,4.12242587,80.05,80.014,4.16690407]
[1770981928586,22.4914,80.091,79.991,4.16690407]
[1770981928587,4.12242577,80.039,79.991,4.16690407]
[1770981929286,4.13561869,80.037,79.994,11.2592]
[1770981929480,4.13561869,80.037,79.991,4.16690407]
[1770981930783,3.20488468,80.03,79.991,4.16690407]
[1770981930977,4.15130009,80.029,79.98,7.21538788]
[1770981931179,4.15130009,80.029,79.981,4.0105032]
[1770981931583,4.00242493,80.017,79.981,4.0105032]
[1770981931783,4.00242493,80.017,79.98,11.2612]
[1770981932580,3.20488468,80.02,79.97,7.21538788]
[1770981932581,4.00242489,80.014,79.973,11.2622]
[1770981933288,15.25882489,80.014,79.973,11.2622]
[1770981934885,3.96164251,80.013,79.973,11.2622]
[1770981935087,3.96164251,80.013,79.973,15.2727032]
[1770981937686,3.96164251,80.013,79.975,4.13505866]
[1770981940687,3.20488468,80.02,79.97,3.20488468]
[1770981940688,3.92662776,80.026,79.983,4.13505866]
[1770981940888,11.2541,80.031,79.991,4.13505866]
[1770981942190,11.2546,80.027,79.991,4.13505866]
[1770981942391,22.497,80.071,79.98,3.20488468]
[1770981942392,3.92662776,80.019,79.98,4.13505866]
[1770981943190,11.2563,80.016,79.98,4.13505866]
[1770981943697,3.92662776,80.019,79.981,11.261]
[1770981943890,3.92662776,80.019,79.982,4.13505866]
[1770981944089,7.13151244,80.04,79.991,4.13505866]
[1770981944392,3.92662776,80.039,79.991,4.13505866]
[1770981945994,15.18022776,80.034,79.992,4.13505866]
[1770981946193,3.20488468,80.03,79.98,3.20488468]
[1770981946396,3.92662776,80.029,79.98,4.13505866]
[1770981946598,3.92662776,80.024,79.982,4.13505866]
[1770981947195,3.20488468,80.03,79.984,4.13505866]
[1770981947396,3.92662776,80.035,79.991,4.13505866]
[1770981948886,11.2543,80.029,79.993,4.13505866]
[1770981949086,15.18092776,80.029,79.993,4.13505866]
[1770981949594,22.5008,80.057,79.969,15.44519858]
[1770981949595,3.92662776,80.022,79.981,4.13505866]
[1770981950293,3.20488468,80.03,79.983,4.13505866]
[1770981950699,3.92662776,80.031,79.983,4.13505866]
[1770981951791,11.2547,80.027,79.987,4.13505866]
[1770981952701,11.2547,80.027,79.99,3.20488468]
[1770981952996,11.2547,80.027,79.991,4.13505866]
[1770981953202,11.2555,80.021,79.991,4.13505866]
[1770981953500,11.2555,80.021,79.982,11.2608]
[1770981953501,15.18212776,80.021,79.983,4.13505866]
[1770981953692,11.2555,80.021,79.983,4.13505866]
[1770981954589,11.2541,80.031,79.995,4.13505866]
[1770981955105,3.92662776,80.039,79.981,19.58025724]
[1770981955301,3.92662776,80.039,79.983,4.13505866]
[1770981955488,3.92662776,80.026,79.989,11.2598]
[1770981955799,3.92662776,80.026,79.983,4.13505866]
[1770981956699,11.2549,80.025,79.983,15.39585866]
[1770981956902,11.2549,80.025,79.984,4.13505866]
[1770981957101,15.18152776,80.025,79.984,4.13505866]
[1770981957800,3.92662776,80.025,79.986,11.2603]
[1770981958503,3.92662776,80.025,79.986,15.39535866]
[1770981958906,3.92662776,80.025,79.988,11.26]
[1770981960201,11.254,80.031,79.992,4.13505866]
[1770981960405,3.92662776,80.03,79.992,4.13505866]
[1770981960595,3.92662776,80.028,79.98,4.06762863]
[1770981960994,22.5008,80.057,79.97,3.20488468]
[1770981960995,3.89166106,80.019,79.97,22.71771189]
[1770981961403,3.89166106,80.019,79.971,4.06762863]
[1770981962401,3.89166106,80.019,79.972,4.06762863]
[1770981962906,11.2559,80.018,79.983,11.2607]
[1770981963305,11.2559,80.018,79.979,4.06762863]
[1770981963696,11.2559,80.018,79.98,3.20488468]
[1770981964007,11.2559,80.018,79.98,7.27251331]
[1770981964204,11.2559,80.018,79.981,4.06762863]
[1770981964506,3.89166106,80.032,79.992,4.06762863]
[1770981964700,3.89166106,80.047,80.001,4.06762863]
[1770981965310,11.2527,80.041,80.003,15.32562863]
[1770981966210,3.89166106,80.047,80.011,4.06762863]
[1770981967208,3.89166106,80.047,79.982,23.16812058]
[1770981967209,11.2507,80.055,80.02,3.19885634]
[1770981967410,11.2507,80.055,80.021,4.06762863]
[1770981971409,3.89166106,80.045,80.01,3.19885634]
[1770981971610,3.89166106,80.045,80.0,3.19885634]
[1770981972317,11.2531,80.038,80.0,4.06762863]
[1770981973412,3.89166106,80.044,80.001,15.32582863]
[1770981973611,3.89166106,80.044,80.002,4.06762863]
[1770981974010,11.2524,80.043,80.004,11.2578]
[1770981974211,11.2524,80.043,80.005,4.06762863]
[1770981976312,3.89166106,80.044,79.996,11.2589]
[1770981976519,3.89166106,80.039,79.997,4.06762863]
[1770981976718,15.14456106,80.039,80.0,11.2583]
[1770981977321,15.14456106,80.039,80.0,14.45715634]
[1770981978006,15.14456106,80.039,80.0,18.52478497]
[1770981978210,3.89166106,80.039,80.005,4.06762863]
[1770981979721,3.89166106,80.039,80.007,11.2574]
[1770981980523,3.89166106,80.039,80.005,4.06762863]
[1770981981523,3.89166106,80.039,80.005,15.32522863]
[1770981983826,3.19885634,80.05,80.006,4.06762863]
[1770981984033,3.89166106,80.05,80.011,4.06762863]
[1770981986629,11.2516,80.049,80.011,4.06762863]
[1770981988036,11.2523,80.044,80.011,4.06762863]
[1770981988431,3.89166106,80.049,80.002,11.2581]
[1770981988633,3.89166106,80.049,80.003,4.06762863]
[1770981989129,3.89166106,80.049,80.011,4.06762863]
[1770981989733,11.2518,80.047,80.011,4.06762863]
[1770981991131,15.22081044,80.047,80.011,4.06762863]
[1770981993633,3.96901044,80.046,80.011,4.06762863]
[1770981994329,11.2523,80.044,80.011,4.06762863]
[1770981996839,4.03555765,80.043,80.01,11.2569]
[1770981998646,11.2511,80.052,80.016,11.2561]
[1770981998938,4.03555765,80.065,80.021,3.82753153]
[1770981999137,4.03555765,80.059,80.011,3.82753153]
[1770981999337,4.03555765,80.052,80.014,11.2564]
[1770981999541,3.19885634,80.05,79.999,3.82753153]
[1770981999741,4.03555765,80.049,80.0,3.19885634]
[1770982000243,4.03555765,80.049,79.999,3.82753153]
[1770982000834,4.03555765,80.049,80.01,11.2569]
[1770982001038,4.03555765,80.049,80.011,3.82753153]
[1770982001735,4.03555765,80.049,80.015,3.82753153]
[1770982002045,4.03555765,80.06,80.015,3.82753153]
[1770982002845,4.03555765,80.06,80.02,7.02638787]
[1770982003740,11.2501,80.059,80.02,7.02638787]
[1770982004341,11.2492,80.066,80.023,3.82753153]
[1770982004540,11.2492,80.066,80.02,3.19885634]
[1770982004541,4.03555765,80.075,80.031,3.82753153]
[1770982004738,4.03555765,80.093,80.05,3.82753153]
[1770982004941,4.03555765,80.093,80.05,7.02638787]
[1770982005137,3.19885634,80.09,80.04,3.19885634]
[1770982005441,4.03555765,80.079,80.037,3.82753153]
[1770982006142,3.19885634,80.08,80.037,3.82753153]
[1770982006143,15.28345765,80.075,80.037,3.82753153]
[1770982006445,4.03555765,80.074,80.037,3.82753153]
[1770982007845,11.2497,80.062,80.037,3.82753153]
[1770982009734,11.2507,80.055,80.025,3.82753153]
[1770982010147,4.03555765,80.059,80.013,3.82753153]
[1770982011543,4.03555765,80.054,80.013,3.82753153]
[1770982012547,15.28655765,80.053,80.013,3.82753153]
[1770982015045,15.28655765,80.053,80.014,11.2564]
[1770982015244,4.03555765,80.052,80.014,11.2564]
[1770982015646,11.2512,80.051,80.014,11.2564]
[1770982015847,15.28675765,80.051,80.014,11.2564]
[1770982017046,4.03555765,80.051,80.02,11.2556]
[1770982017849,4.03555765,80.051,80.014,3.82753153]
[1770982018554,4.03555765,80.068,80.02,3.19885634]
[1770982018852,4.03555765,80.068,80.021,3.82753153]
[1770982019252,4.03555765,80.064,80.022,3.82753153]
[1770982020454,15.28515765,80.063,80.023,11.2551]
[1770982020948,4.03555765,80.063,80.022,3.82753153]
[1770982021555,4.03555765,80.063,80.029,11.2543]
[1770982023255,11.2498,80.062,80.024,4.08919939]
[1770982028264,4.03555765,80.063,80.027,4.08919939]
[1770982029555,3.80411656,80.062,80.028,11.2543]
[1770982029853,3.80411656,80.062,80.02,3.19757978]
[1770982030050,3.19757978,80.06,80.016,4.08919939]
[1770982030353,3.80411656,80.059,80.016,4.08919939]
[1770982031855,3.80411656,80.053,80.016,4.08919939]
[1770982033860,3.80411656,80.053,80.017,15.34509939]
[1770982034661,11.2511,80.052,80.017,15.34509939]
[1770982035660,11.2511,80.052,80.018,4.08919939]
[1770982038059,3.80411656,80.076,80.018,4.08919939]
[1770982038251,3.80411656,80.076,80.021,4.08919939]
[1770982038451,3.80411656,80.069,80.021,4.08919939]
[1770982039456,3.80411656,80.062,80.026,15.34389939]
[1770982040164,3.80411656,80.062,80.002,124.5]
[1770982040165,3.80411656,80.054,80.018,11.2558]
[1770982040964,3.80411656,80.054,80.004,15.44519858]
[1770982040965,3.80411656,80.052,80.012,11.2567]
[1770982041160,3.80411656,80.049,80.004,4.08919939]
[1770982042964,101.6,80.067,79.993,4.08919939]
[1770982043162,23.1214776,80.09,79.98,3.19757978]
[1770982043163,3.80411656,80.084,80.041,4.08919939]
[1770982043368,3.80411656,80.084,80.05,11.2513]
[1770982045466,3.80411656,80.079,80.029,4.08919939]
[1770982045656,2.17350571,80.114,80.017,4.08919939]
[1770982045657,3.80411656,80.069,80.017,4.08919939]
[1770982046762,3.80411656,80.059,80.003,4.08919939]
[1770982047466,11.2504,80.058,80.01,3.19757978]
[1770982047668,3.80411656,80.057,80.01,3.19757978]
[1770982048468,3.80411656,80.057,80.01,7.28677917]
[1770982048665,3.80411656,80.057,80.011,4.08919939]
[1770982048870,3.80411656,80.055,80.011,4.08919939]
[1770982049565,11.2512,80.052,80.011,4.08919939]
[1770982049764,3.80411656,80.049,80.001,4.08919939]
[1770982050169,3.80411656,80.039,80.001,4.08919939]
[1770982053880,11.2515,80.049,80.003,3.94303452]
[1770982054281,3.93753569,80.048,80.003,3.94303452]
[1770982054776,3.93753569,80.048,80.005,3.94303452]
[1770982058177,11.2519,80.047,80.005,3.94303452]
[1770982058377,15.3068325,80.047,80.005,3.94303452]
[1770982059183,4.0549325,80.046,80.005,3.94303452]
[1770982059682,7.25251228,80.02,79.983,4.11116258]
[1770982059882,4.0549325,80.019,79.983,4.11116258]
[1770982060186,11.2525,80.042,79.992,4.11116258]
[1770982060983,4.0549325,80.039,79.992,4.11116258]
[1770982061581,4.0549325,80.039,79.999,11.2584]
[1770982062887,11.2531,80.038,79.999,11.2584]
[1770982063183,11.2531,80.038,79.993,4.11116258]
[1770982063880,11.2517,80.048,80.005,4.11116258]
[1770982064088,11.2517,80.048,80.011,4.11116258]
[1770982064482,4.0549325,80.065,80.021,4.11116258]
[1770982065488,11.2515,80.05,80.01,3.19757978]
[1770982065679,4.0549325,80.049,80.009,4.11116258]
[1770982066882,11.252,80.046,80.009,4.11116258]
[1770982067481,4.0549325,80.049,80.011,11.2568]
[1770982067990,15.3065325,80.049,80.009,4.11116258]
[1770982068992,4.0549325,80.049,80.011,4.11116258]
[1770982070781,11.2517,80.048,80.011,4.11116258]
[1770982070989,4.0549325,80.047,79.998,4.11116258]
[1770982071279,4.0549325,80.047,80.006,4.11116258]
[1770982071478,4.0549325,80.047,80.011,4.11116258]
[1770982073682,11.2511,80.052,80.013,11.2565]
[1770982073888,11.2511,80.052,80.014,4.11116258]
[1770982075896,292.18168512,80.077,80.018,4.11116258]
[1770982075897,4.0549325,80.067,80.018,4.11116258]
[1770982076100,7.25251228,80.06,80.018,4.11116258]
[1770982076794,11.2488,80.068,80.028,4.11116258]
[1770982077499,11.2496,80.063,80.028,4.11116258]
[1770982078199,3.19757978,80.07,80.029,4.11116258]
[1770982078699,7.25251228,80.07,80.029,4.11116258]
[1770982078901,11.2494,80.064,80.029,4.11116258]
[1770982081593,191.52168512,80.077,80.001,4.1040667]
[1770982081594,3.93446987,80.047,80.001,4.1040667]
[1770982081802,3.19757978,80.04,80.001,4.1040667]
[1770982082704,11.2536,80.034,80.001,4.1040667]
[1770982083004,3.93446987,80.039,80.001,4.1040667]
[1770982083301,11.2532,80.037,80.001,15.3622667]
[1770982084406,11.2532,80.037,80.001,4.1040667]
[1770982084605,3.93446987,80.039,80.001,4.1040667]
[1770982085703,3.93446987,80.039,80.005,11.2576]
[1770982086506,3.93446987,80.058,80.001,4.1040667]
[1770982087505,3.93446987,80.054,80.014,11.2563]
[1770982088204,3.93446987,80.054,80.018,4.1040667]
[1770982089707,11.251,80.053,80.018,4.1040667]
[1770982093816,3.93446987,80.065,80.02,4.1040667]
[1770982094804,11.25,80.06,80.022,11.2552]
[1770982095217,3.93446987,80.065,80.023,4.1040667]
[1770982095919,11.2495,80.064,80.028,11.2544]
[1770982096819,11.2503,80.058,80.023,4.1040667]
[1770982097313,3.93446987,80.065,80.023,4.1040667]
[1770982098326,3.93446987,80.065,80.03,11.254]
[1770982098620,3.93446987,80.065,80.031,4.1040667]
[1770982100412,3.93446987,80.065,80.032,11.2539]
[1770982100616,3.93446987,80.076,80.033,4.1040667]
[1770982101218,11.2479,80.075,80.041,4.1040667]
[1770982101719,11.2466,80.084,80.045,4.1040667]
[1770982102123,3.93446987,80.079,80.032,15.56877273]
[1770982102425,3.93446987,80.079,80.032,4.1040667]
[1770982103019,3.93446987,80.077,80.032,4.1040667]
[1770982104828,3.93446987,80.077,80.04,4.1040667]
[1770982104829,11.2478,80.076,80.04,4.1040667]
[1770982106429,11.2487,80.07,80.04,4.1040667]
[1770982107329,11.2477,80.076,80.04,4.1040667]
[1770982109529,3.93446987,80.077,80.04,4.1040667]
[1770982110227,3.19896745,80.09,80.04,4.1040667]
[1770982110228,3.93446987,80.088,80.042,4.1040667]
[1770982110424,3.93446987,80.099,80.061,4.1040667]
[1770982111116,4.12223542,80.11,80.072,11.2483]
[1770982111318,4.12223542,80.11,80.072,4.00833792]
[1770982111928,4.12223542,80.11,80.086,11.2462]
[1770982112328,4.12223542,80.11,80.072,4.00833792]
[1770982112522,4.12223542,80.129,80.091,4.00833792]
[1770982113821,4.12223542,80.129,80.101,11.2441]
[1770982116823,4.15166654,80.149,80.091,4.00833792]
[1770982117033,4.15166654,80.149,80.1,7.25565492]
[1770982117527,4.15166654,80.147,80.1,7.25565492]
[1770982117727,4.15166654,80.147,80.057,38.06937273]
[1770982117728,4.15166654,80.147,80.11,3.19896745]
[1770982117925,4.15166654,80.159,80.111,4.05668747]
[1770982119328,4.15166654,80.149,80.1,3.19896745]
[1770982119530,4.15166654,80.149,80.1,7.25565492]
[1770982119731,4.15166654,80.139,80.089,4.05668747]
[1770982119932,4.15166654,80.139,80.091,11.2455]
[1770982120629,4.15166654,80.119,80.082,4.05668747]
[1770982121029,4.15166654,80.119,80.071,4.05668747]
[1770982121930,4.15166654,80.119,80.073,4.05668747]
[1770982122837,4.15166654,80.119,80.076,4.05668747]
[1770982123732,4.15166654,80.119,80.079,4.05668747]
[1770982124433,4.15166654,80.119,80.081,4.05668747]
[1770982125939,11.2419,80.118,80.081,4.05668747]
[1770982127540,4.15166654,80.119,80.085,4.05668747]
[1770982132041,11.2404,80.129,80.087,4.05668747]
[1770982133136,4.15166654,80.13,80.095,4.05668747]
[1770982133340,4.15166654,80.141,80.095,4.05668747]
[1770982133540,4.15166654,80.141,80.1,3.19896745]
[1770982133846,4.15166654,80.141,80.101,4.05668747]
[1770982134845,4.15166654,80.141,80.105,11.2436]
[1770982135251,4.15166654,80.141,80.108,4.05668747]
[1770982135445,11.2377,80.148,80.108,4.05668747]
[1770982135651,4.15166654,80.152,80.111,4.05668747]
[1770982136347,4.15166654,80.169,80.121,4.05668747]
[1770982137752,4.15166654,80.167,80.128,11.2403]
[1770982139159,4.15166654,80.149,80.108,4.05668747]
[1770982139759,4.15166654,80.148,80.096,4.05668747]
[1770982140059,4.15166654,80.139,80.096,4.05668747]
[1770982140958,4.06194158,80.138,80.096,15.30158747]
[1770982141658,4.06194158,80.134,80.089,11.2458]
[1770982141953,99.62,80.169,80.061,4.08683669]
[1770982141954,4.06194158,80.119,80.061,4.08683669]
[1770982142760,4.06194158,80.119,80.083,11.2467]
[1770982147467,4.06194158,80.115,80.073,4.08683669]
[1770982147765,11.2427,80.112,80.073,4.08683669]
[1770982149561,4.06194158,80.103,80.06,15.33673669]
[1770982150769,11.2444,80.1,80.061,4.08683669]
[1770982151158,3.19368294,80.11,80.061,4.08683669]
[1770982151159,4.06194158,80.099,80.061,4.08683669]
[1770982152881,11.2458,80.09,80.061,4.08683669]
[1770982153565,4.06194158,80.097,80.061,4.08683669]
[1770982154565,4.06194158,80.095,80.05,4.08683669]
[1770982154875,4.06194158,80.095,80.053,11.2509]
[1770982155574,4.06194158,80.092,80.053,11.2509]
[1770982155774,3.19368294,80.1,80.058,4.08683669]
[1770982156470,3.19368294,80.1,80.059,4.08683669]
[1770982156880,11.2453,80.093,80.059,4.08683669]
[1770982157477,3.19368294,80.1,80.059,4.08683669]
[1770982157677,11.2458,80.09,80.059,4.08683669]
[1770982157974,4.06194158,80.089,80.034,4.08683669]
[1770982158178,4.06194158,80.089,80.044,11.2521]
[1770982158374,3.19368294,80.08,80.044,11.2521]
[1770982158673,4.06194158,80.079,80.034,4.08683669]
[1770982159779,4.06194158,80.079,80.038,4.08683669]
[1770982160973,11.2476,80.077,80.038,4.08683669]
[1770982161172,4.06194158,80.076,80.038,4.08683669]
[1770982161679,4.06194158,80.076,80.042,11.2524]
[1770982162281,3.19368294,80.07,80.038,4.08683669]
[1770982162673,4.06194158,80.076,80.038,4.08683669]
[1770982163977,4.06194158,80.076,79.893,54.64704617]
[1770982163978,4.06194158,80.058,80.016,11.256]
[1770982164669,3.19368294,80.05,80.016,11.256]
[1770982165470,3.19368294,80.05,80.021,4.08683669]
[1770982166178,11.2516,80.049,80.006,4.08683669]
[1770982166370,4.06194158,80.048,80.006,4.08683669]
[1770982167186,4.06194158,80.048,80.006,15.34433669]
[1770982168882,3.19368294,80.05,80.009,4.08683669]
[1770982169675,7.25562452,80.05,80.009,4.08683669]
[1770982169881,11.2516,80.048,80.009,4.08683669]
[1770982171287,7.25562452,80.05,80.009,4.08683669]
[1770982171288,3.19368294,80.04,80.009,4.08683669]
[1770982171486,11.2525,80.042,80.009,4.08683669]
[1770982171681,3.96361307,80.049,80.009,4.08683669]
[1770982172280,3.96361307,80.038,79.996,4.03688824]
[1770982173893,15.21691307,80.037,79.996,4.03688824]
[1770982174082,3.96361307,80.037,79.998,4.03688824]
[1770982174483,11.2522,80.044,79.998,4.03688824]
[1770982174682,7.15729601,80.05,80.001,4.03688824]
[1770982175291,11.2516,80.049,80.001,4.03688824]
[1770982178589,11.2516,80.049,80.003,3.99367298]
[1770982178985,11.2516,80.049,80.007,3.99367298]
[1770982179786,11.2507,80.055,80.009,3.99367298]
[1770982180181,4.15247674,80.059,80.009,3.99367298]
[1770982180385,4.15247674,80.049,80.009,3.99367298]
[1770982180584,11.2524,80.043,80.009,3.99367298]
[1770982184686,4.15247674,80.049,80.01,11.2569]
[1770982184881,4.15247674,80.049,80.01,15.25057298]
[1770982185386,4.15247674,80.049,80.011,3.99367298]
[1770982185694,7.34615968,80.06,80.013,3.99367298]
[1770982186081,4.15247674,80.059,80.013,3.99367298]
[1770982186787,4.15247674,80.059,80.019,15.24937298]
[1770982186991,4.15247674,80.059,80.02,3.99367298]
[1770982188792,3.19368294,80.07,80.031,3.99367298]
[1770982188996,4.15247674,80.071,80.031,3.99367298]
[1770982189792,4.15247674,80.071,80.034,3.99367298]
[1770982190888,4.15247674,80.071,80.035,11.2534]
[1770982191084,4.15247674,80.071,80.035,15.24707298]
[1770982191486,4.15247674,80.071,80.035,3.99367298]
[1770982192698,11.2486,80.07,80.035,3.99367298]
[1770982194695,4.15247674,80.071,80.037,3.99367298]
[1770982196695,4.15247674,80.071,80.037,15.24677298]
[1770982200706,4.15247674,80.071,80.04,11.2528]
[1770982200895,4.15247674,80.071,80.04,15.27857727]
[1770982201098,3.19368294,80.1,80.041,4.02577727]
[1770982201303,3.86809157,80.096,80.059,4.02577727]
[1770982202703,3.86809157,80.096,80.06,11.2499]
[1770982202903,11.2451,80.095,80.06,11.2499]
[1770982204502,3.19368294,80.11,80.063,4.02577727]
[1770982204709,3.86809157,80.108,80.063,4.02577727]
[1770982205705,3.86809157,80.108,80.068,4.02577727]
[1770982207412,3.86809157,80.108,80.071,4.02577727]
[1770982209411,3.86809157,80.099,80.059,4.02577727]
[1770982210911,3.86809157,80.099,80.061,11.2497]
[1770982211512,3.86809157,80.099,80.061,15.27547727]
[1770982212008,3.86809157,80.099,80.061,4.02577727]
[1770982212413,3.86809157,80.085,80.041,11.2525]
[1770982212609,3.86809157,80.085,80.037,4.02577727]
[1770982213011,3.86809157,80.085,80.053,4.02577727]
[1770982213518,3.86809157,80.096,80.055,4.02577727]
[1770982214519,3.86809157,80.096,80.063,11.2495]
[1770982214716,3.86809157,80.096,80.055,4.02577727]
[1770982215719,3.86809157,80.096,80.056,11.2504]
[1770982215927,3.86809157,80.096,80.057,4.02577727]
[1770982216714,3.86809157,80.096,80.058,11.2502]
[1770982216913,3.86809157,80.096,80.059,4.02577727]
[1770982218620,3.86809157,80.095,80.059,4.02577727]
[1770982221925,3.86809157,80.095,80.061,11.2498]
[1770982222528,3.86809157,80.095,80.059,4.02577727]
[1770982223525,3.86809157,80.095,80.059,15.27577727]
[1770982225131,3.86809157,80.095,80.028,22.5087]
[1770982225132,11.2444,80.1,80.065,4.02577727]
[1770982225627,3.86809157,80.099,80.065,4.02577727]
[1770982225831,3.86809157,80.099,80.055,11.2506]
[1770982226030,3.86809157,80.099,80.056,4.02577727]
[1770982226534,3.86809157,80.099,80.059,4.02577727]
[1770982227838,11.2454,80.093,80.059,4.02577727]
[1770982228340,3.86809157,80.099,80.059,4.02577727]
[1770982229837,3.86809157,80.098,80.059,4.02577727]
[1770982230535,15.11299157,80.096,80.059,15.27587727]
[1770982231327,3.80206169,80.093,80.059,15.27587727]
[1770982232441,3.80206169,80.087,80.048,11.2516]
[1770982233329,3.80206169,80.099,80.051,4.11528414]
[1770982234235,3.80206169,80.09,80.051,4.11528414]
[1770982234738,3.80206169,80.085,80.051,4.11528414]
[1770982235435,15.01707959,80.077,80.039,4.04135044]
[1770982235643,3.76947959,80.076,80.039,4.04135044]
[1770982236336,11.2479,80.075,80.041,4.04135044]
[1770982236742,3.76947959,80.076,80.021,4.04135044]
[1770982237043,3.76947959,80.069,80.021,4.04135044]
[1770982237735,3.76947959,80.069,80.02,3.19413452]
[1770982237736,11.2495,80.063,80.028,4.04135044]
[1770982238040,3.76947959,80.062,80.028,4.04135044]
[1770982238247,3.76947959,80.059,80.017,4.04135044]
[1770982239447,3.19413452,80.05,80.005,4.04135044]
[1770982239642,3.76947959,80.049,80.005,4.04135044]
[1770982240334,3.76947959,80.039,79.994,4.04135044]
[1770982240530,3.76947959,80.029,79.987,4.04135044]
[1770982241145,3.76947959,80.028,79.987,4.04135044]
[1770982241440,3.76947959,80.028,79.991,4.04135044]
[1770982241747,3.76947959,80.039,79.991,4.04135044]
[1770982241945,3.76947959,80.038,79.993,4.04135044]
[1770982242144,100.88,80.056,79.993,4.04135044]
[1770982242145,3.76947959,80.029,79.993,4.04135044]
[1770982242344,3.76947959,80.029,79.981,4.04135044]
[1770982242844,3.76947959,80.019,79.981,4.04135044]
[1770982245043,3.19413452,80.03,79.983,4.04135044]
[1770982245943,3.76947959,80.056,80.011,4.04135044]
[1770982247749,3.76947959,80.069,80.021,4.04135044]
[1770982248646,3.76947959,80.059,80.012,11.2566]
[1770982249046,3.76947959,80.049,80.005,11.2577]
[1770982249443,3.76947959,80.049,79.997,4.04135044]
[1770982249749,3.76947959,80.039,79.998,11.2586]
[1770982249942,3.76947959,80.029,79.971,4.04135044]
[1770982250142,3.19413452,80.03,79.971,4.04135044]
[1770982250143,3.76947959,80.019,79.971,4.04135044]
[1770982250842,3.76947959,80.009,79.971,4.04135044]
[1770982251835,3.76947959,80.009,79.96,3.19413452]
[1770982252241,3.76947959,80.024,79.981,4.04135044]
[1770982252446,6.96361411,80.02,79.981,4.04135044]
[1770982252647,3.76947959,80.019,79.97,3.19413452]
[1770982253043,3.76947959,80.019,79.971,4.04135044]
[1770982253846,11.2559,80.018,79.971,4.04135044]
[1770982254360,15.02537959,80.018,79.971,4.04135044]
[1770982254849,3.76947959,80.009,79.971,4.04135044]
[1770982257052,11.2573,80.008,79.971,4.04135044]
[1770982258955,11.2582,80.002,79.971,4.04135044]
[1770982260461,99.7,80.055,79.94,119.35446997]
[1770982260462,3.76947959,79.989,79.949,4.04135044]
[1770982260955,11.2608,79.983,79.949,4.04135044]
[1770982261346,3.76947959,79.989,79.9,22.5449]
[1770982261347,3.19413452,79.98,79.936,3.99048462]
[1770982261750,3.91512844,79.979,79.936,3.99048462]
[1770982262648,11.2616,79.977,79.936,3.99048462]
[1770982263053,3.91512844,79.976,79.936,3.99048462]
[1770982264954,3.91512844,79.99,79.951,3.99048462]
[1770982265158,11.2596,79.992,79.951,3.99048462]